Cogmind - Beta 13 @@@ ROGUE MODE // 2024.04.24 @ 20:48:11 Player: Gold Spoon Result: Self-destructed Performance ------------- Evolutions (1) 500 Regions Visited (3) 600 Robots Destroyed (21) 105 Value Destroyed (481) 481 Prototype IDs (5) 100 Alien Tech Used (0) 0 Bonus (0) 0 TOTAL SCORE: 1786 Bonus ------- None Cogmind --------- Core Integrity 345/400 Matter 298/300 Energy 100/100 System Corruption 0% Temperature Cool (88) Movement Rolling (115) Ox1 Location -9/Materials Parts ------- > --- POWER (1) -------- (None) > --- PROPULSION (2) --- Compact Wheel > --- UTILITY (4) ------ Large Storage Unit Signal Interpreter Targeting Computer > --- WEAPON (2) ------- Beam Rifle Light Assault Rifle > --- INVENTORY (15) --- Compact Wheel Heat Sink Targeting Computer Targeting Computer Peak State ------------ > --- POWER ------------ Ion Engine > --- PROPULSION ------- Compact Wheel Compact Wheel > --- UTILITY ---------- Heat Sink Small Storage Unit Signal Interpreter Targeting Computer > --- WEAPON ----------- Beam Rifle Light Assault Rifle > --- INVENTORY -------- Compact Wheel Targeting Computer Targeting Computer [Rating: 10] Favorites ----------- Power Ion Engine Engine Ion Engine Propulsion Wheel Wheel Wheel Utility Small Storage Unit Device Heat Sink Storage Small Storage Unit Processor Signal Interpreter Weapon Light Assault Rifle Energy Gun Medium Laser Ballistic Gun Light Assault Rifle Build | -11 -10 -10 -9 ------- Run | Yrd Mat Min Mat Slots Evolved 2 | . . . 2 Power . | . . . . Propulsion . | . . . . Utility 2 | . . . 2 Weapon . | . . . . Parts Attached 22 | 6 4 6 6 Power 4 | 1 . 2 1 Engine 4 | 1 . 2 1 Core . | . . . . Reactor . | . . . . Propulsion 5 | 2 1 2 . Treads . | . . . . Leg . | . . . . Wheel 5 | 2 1 2 . Hover . | . . . . Flight . | . . . . Utility 6 | 1 1 1 3 Device 2 | . 1 . 1 Storage 2 | 1 . . 1 Processor 2 | . . 1 1 Hackware . | . . . . Protection . | . . . . Artifact . | . . . . Weapon 7 | 2 2 1 2 Energy Gun 3 | 2 . . 1 Energy Cannon . | . . . . Ballistic Gun 4 | . 2 1 1 Ballistic Cannon . | . . . . Launcher . | . . . . Special Weapon . | . . . . Impact Weapon . | . . . . Slashing Weapon . | . . . . Piercing Weapon . | . . . . Special Melee Weapon . | . . . . Unidentified Prototypes . | . . . . Parts Lost 9 | . 1 6 2 Power 3 | . . 2 1 Propulsion 4 | . 1 2 1 Utility . | . . . . Weapon 2 | . . 2 . Highest Loss Streak 3 | . 1 3 1 To Critical Strikes . | . . . . Average Slot Usage (%) 88 | . 91 84 88 Engine 12 | . 14 13 9 Wheel 25 | . 27 25 19 Device 9 | . 6 13 6 Storage 13 | . 14 14 11 Processor 4 | . . . 22 Energy Gun 9 | . 18 . 10 Ballistic Gun 12 | . 9 16 9 Naked Turns . | . . . . Heaviest Build 30 | 14 15 14 30 Greatest Support 32 | 20 20 32 32 Greatest Overweight (x) 1 | . . . 1 Average Overweight (x) . | . . . . Largest Inventory Capacity 15 | 8 8 8 15 Average Capacity 9 | 6 8 8 13 Most Carried 8 | 5 8 8 4 Average Carried 4 | . 3 5 3 Final Capacity 15 | 8 8 8 15 Final Carried 8 | . 8 5 4 Class Distribution -------------------- 100% | Mutant Dominant Class ---------------- Mutant | -10/Materials Mutant | -10/Mines Mutant | -9/Materials Resources | -11 -10 -10 -9 ----------- Run | Yrd Mat Min Mat Matter Collected 539 | 198 136 132 73 Remotely . | . . . . Salvage Created 588 | . 226 272 90 Parts 37 | . 16 16 5 Haulers Intercepted . | . . . . Recyclers Shooed . | . . . . Parts Field Recycled . | . . . . Retrieved Matter . | . . . . Parts Self-Destructed . | . . . . Prevented . | . . . . Kills | -11 -10 -10 -9 ------- Run | Yrd Mat Min Mat Combat Hostiles Destroyed 18 | . 7 9 2 Guns 18 | . 7 9 2 Classes Destroyed 4 | . 3 . 1 Watcher 3 | . 2 . 1 Swarmer 9 | . 3 5 1 Grunt 8 | . 4 4 . Sentry 1 | . . . 1 Best Kill Streak 3 | . 3 3 1 Combat Bots Only 3 | . 3 3 1 Max Kills in Single Turn 2 | . 2 1 1 Gunslinging 1 | . 1 . . Exploded . | . . . . Melee . | . . . . Uniques/NPCs Destroyed . | . . . . Combat | -11 -10 -10 -9 -------- Run | Yrd Mat Min Mat Hostile Shots Fired 135 | . 42 67 26 Missed 34 | . 12 19 3 Damage Taken 1084 | . 307 555 222 Core 262 | . 73 134 55 Absorbed by Shields . | . . . . Regen/Repaired (Parts) 101 | . . . 101 Core Remaining (%) 58 | 100 . 17 . Volleys Fired 96 | . 31 50 15 Largest 2 | . 2 2 2 Hottest 100 | . 100 40 76 Shots Fired 158 | . 62 66 30 Gun 158 | . 62 66 30 Cannon . | . . . . Launcher . | . . . . Special . | . . . . Kinetic 103 | . 22 66 15 Thermal 55 | . 40 . 15 Explosive . | . . . . Electromagnetic . | . . . . Robot Hit Streak 13 | . 4 13 8 Robot Miss Streak 6 | . 6 3 5 Penetration Max . | . . . . Secondary Targets 4 | . 2 2 . Max Gunslinging Chain 1 | . 1 1 . Shots Hit Robots 90 | . 31 45 14 Core Hits 38 | . 15 16 7 Critical Kills . | . . . . Critical Parts Destroyed . | . . . . Critical Strikes 1 | . 1 . . Burn 1 | . 1 . . Melee Attacks . | . . . . Impact . | . . . . Slashing . | . . . . Piercing . | . . . . Sneak Attacks . | . . . . Combat Hostiles . | . . . . Follow-up Attacks . | . . . . Damage Inflicted 995 | . 402 429 164 Guns 992 | . 399 429 164 Cannons . | . . . . Explosions . | . . . . Melee . | . . . . Ramming 3 | . 3 . . Kinetic 638 | . 144 429 65 Thermal 354 | . 255 . 99 Explosive . | . . . . Electromagnetic . | . . . . Impact . | . . . . Slashing . | . . . . Piercing . | . . . . Highest Corruption . | . . . . Average Corruption . | . . . . Corruption Purged . | . . . . Corruption Blocked . | . . . . Overload Shots . | . . . . Overflow Damage . | . . . . Projectiles . | . . . . Explosions . | . . . . Melee . | . . . . Knockbacks . | . . . . Impact . | . . . . Kinetic . | . . . . Secondary . | . . . . Self-Inflicted Damage 1 | . 1 . . Shots . | . . . . Rammed 1 | . 1 . . Targets Rammed 1 | . 1 . . Kicked . | . . . . Crushed . | . . . . Highest Temperature 338 | . 338 7 92 Average Temperature 102 | . 128 7 43 Received Heat Transfer 375 | . 114 243 18 Effects 1 | . 1 . . Energy Bleed 1 | . 1 . . Siege Activations . | . . . . Robots Corrupted . | . . . . Combat Hostiles . | . . . . Parts Fried . | . . . . Impact Corruptions . | . . . . Robots Melted . | . . . . Combat Hostiles . | . . . . Parts Melted 3 | . 2 . 1 Heat Transferred 1073 | . 814 . 259 Parts Sabotaged . | . . . . Parts Stolen . | . . . . Parts Stripped . | . . . . Power Chain Reactions . | . . . . Alert | -11 -10 -10 -9 ------- Run | Yrd Mat Min Mat Peak Influence 183 | . 166 183 139 Initial 23 | . . 23 . Average 87 | . 89 119 43 Maximum Alert Level . | . . . . Low Security (%) 100 | 100 100 100 100 Level 1 . | . . . . Level 2 . | . . . . Level 3 . | . . . . Level 4 . | . . . . Level 5 . | . . . . High Security . | . . . . Max Security . | . . . . Squads Dispatched 2 | . 2 . . Investigation 1 | . 1 . . Extermination . | . . . . Reinforcement 1 | . 1 . . Assault . | . . . . Garrison . | . . . . Intercept . | . . . . Searches Triggered . | . . . . Construction Impeded . | . . . . Haulers Reinforced . | . . . . Active Scanning Responses . | . . . . Cargo Convoy Interrupts . | . . . . Stealth | -11 -10 -10 -9 --------- Run | Yrd Mat Min Mat Distress Signals 2 | . 1 . 1 Communications Jammed . | . . . . Distress Signals . | . . . . Times Spotted 30 | . 12 9 9 Peak Tracking Total 6 | . 5 3 6 Tactical Retreats 1 | . 1 . . Traps | -11 -10 -10 -9 ------- Run | Yrd Mat Min Mat Traps Triggered . | . . . . Indirectly . | . . . . Trap Hack Attempts . | . . . . Triggered . | . . . . Disarmed 1 | . 1 . . Reprogrammed . | . . . . Reused . | . . . . Traps Extracted . | . . . . Installed . | . . . . Triggered . | . . . . Machines | -11 -10 -10 -9 ---------- Run | Yrd Mat Min Mat Machines Disabled . | . . . . Max in Single Turn . | . . . . Machines Repaired . | . . . . Machines Dismantled . | . . . . Machines Sabotaged . | . . . . Overloaded Fab Kills . | . . . . Hacking | -11 -10 -10 -9 --------- Run | Yrd Mat Min Mat Machines Accessed 8 | . 5 . 3 Terminals 6 | . 4 . 2 Fabricators . | . . . . Repair Stations 1 | . . . 1 Recycling Units 1 | . 1 . . Scanalyzers . | . . . . Garrison Access . | . . . . Total Hacks 30 | . 18 . 12 Successful 19 | . 11 . 8 Failed 11 | . 7 . 4 Catastrophic 1 | . 1 . . Database Lockouts . | . . . . Manual . | . . . . Terminals 19 | . 15 . 4 Fabricators . | . . . . Repair Stations 8 | . . . 8 Recycling Units 3 | . 3 . . Scanalyzers . | . . . . Garrison Access . | . . . . Terminal Hacks 11 | . 9 . 2 Robot Analysis 1 | . 1 . . Prototype ID Bank 2 | . 1 . 1 Emergency Access Points 2 | . 2 . . Alert Level 3 | . 2 . 1 Locate Traps 1 | . 1 . . Disarm Traps 1 | . 1 . . Registered Prototypes 1 | . 1 . . Fabricator Hacks . | . . . . Repair Station Hacks 6 | . . . 6 Scan Component 3 | . . . 3 Repair 3 | . . . 3 Recycling Unit Hacks 2 | . 2 . . Report Inventory 1 | . 1 . . Retrieve Components 1 | . 1 . . Scanalyzer . | . . . . Garrison Access Hacks . | . . . . Unauthorized Hacks . | . . . . Terminals . | . . . . Fabricators . | . . . . Repair Stations . | . . . . Recycling Units . | . . . . Scanalyzers . | . . . . Garrison Access . | . . . . Data Cores Recovered . | . . . . Used . | . . . . Hacking Detections 6 | . 4 . 2 Full Trace Events 1 | . 1 . . Feedback Events . | . . . . Feedback Blocked . | . . . . Robot Schematics Acquired . | . . . . Robots Built . | . . . . Authchips . | . . . . Time . | . . . . Total Robot Build Rating . | . . . . Part Schematics Acquired . | . . . . Parts Built . | . . . . Authchips . | . . . . Time . | . . . . Total Part Build Rating . | . . . . Parts Repaired 3 | . . . 3 Time 78 | . . . 78 Parts Recycled . | . . . . Recycled Matter . | . . . . Retrieved Matter . | . . . . Retrieved Components . | . . . . Parts Scanalyzed . | . . . . Part Schematics Acquired . | . . . . Parts Damaged . | . . . . Bothacking | -11 -10 -10 -9 ------------ Run | Yrd Mat Min Mat Used RIF Installer . | . . . . Robots Hacked . | . . . . Non-combat . | . . . . Combat . | . . . . Robot Hacks Applied . | . . . . Relay Couplers Released . | . . . . Fabnet Peak Effective % . | . . . . Robots Rewired . | . . . . Allies Hacked . | . . . . Hacks Repelled . | . . . . Allies | -11 -10 -10 -9 -------- Run | Yrd Mat Min Mat Total Allies . | . . . . Largest Group . | . . . . Highest-Rated Group . | . . . . Highest-Rated Ally . | . . . . Total Orders . | . . . . Ally Attacks . | . . . . Total Damage . | . . . . Kills . | . . . . Allies Corrupted . | . . . . Allies Melted . | . . . . Intel | -11 -10 -10 -9 ------- Run | Yrd Mat Min Mat Robot Analysis Total 1 | . 1 . . Derelict Logs Recovered 1 | . . 1 . Drone Launches . | . . . . Drone Recoveries . | . . . . Exploration | -11 -10 -10 -9 ------------- Run | Yrd Mat Min Mat Turns Passed 1224 | 45 476 450 253 Spaces Moved 885 | 42 390 345 108 Core 14 | 14 . . . Treads . | . . . . Legs . | . . . . Wheels 871 | 28 390 345 108 Hover . | . . . . Flight . | . . . . Fastest Speed 50 | 50 80 80 100 Average Speed 88 | 70 80 95 103 Slowest Speed 115 | 80 80 100 115 Overloaded Moves . | . . . . Propulsion Burnouts . | . . . . Robots Hopped . | . . . . Cave-ins Triggered . | . . . . Exploration Rate (%) 34 | 3 59 60 17 Regions Visited 3 Branch Regions 1 Pre-discovered Areas 1 | . . 1 . Known Exits Taken 1 | . . 1 . Unknown Exits Taken 2 | 1 1 . . Scrap Searched 1 | . . 1 . Spaces Dug . | . . . . Terrain Destroyed . | . . . . Melee . | . . . . Projectile . | . . . . AOE . | . . . . Terrain Rammed . | . . . . Walls Destroyed . | . . . . Machines Disabled . | . . . . Actions | -11 -10 -10 -9 --------- Run | Yrd Mat Min Mat Total 1182 | 57 494 409 222 Wait 147 | 4 51 5 87 Move 882 | 41 389 344 108 Hop . | . . . . Pick Up 28 | 6 14 3 5 Fast Attach . | . . . . Attach 18 | 6 2 5 5 Detach . | . . . . Swap 4 | . 2 1 1 Drop 6 | . 4 1 1 Fire 96 | . 31 50 15 Melee . | . . . . Ram 1 | . 1 . . Kick . | . . . . Crush . | . . . . Escape Stasis . | . . . . Rewire . | . . . . Trap . | . . . . Miscellaneous . | . . . . Route ------- -11/Scrapyard -10/Materials (discovered 2 exits: *Mat / [*Min]) -10/Mines -9/Materials History --------- Turn | Location | Event 6 | -11/Scrapyard | Discovered new exit (range 16) 46 | -11/Scrapyard | Entered Materials 322 | -10/Materials | Build established: Mutant 336 | -10/Materials | Discovered new exit (range 16) 497 | -10/Materials | Discovered new exit (range 16) 522 | -10/Materials | Entered Mines 565 | -10/Mines | Core integrity fell below 50% 594 | -10/Mines | Lost 3 parts (1p1n1w) 767 | -10/Mines | Assembled infested the area 772 | -10/Mines | Assisted by a Guerilla fighting off Assembled 790 | -10/Mines | Core integrity fell below 20% 816 | -10/Mines | Learned location of Mines (-9) 960 | -10/Mines | Discovered new exit (range 12) 971 | -10/Mines | Identified exit to Materials 972 | -10/Mines | Entered Materials 972 | -9/Materials | Evolved 2 slots: Utility x2 1087 | -9/Materials | Repaired Lgt. Assault Rifle 1114 | -9/Materials | Repaired Ion Engine 1142 | -9/Materials | Repaired Heat Sink 1225 | -9/Materials | Self-destructed Last Messages --------------- Rating: 1 Time: 26 >>Repair Repairing Heat Sink... ETC: 26 Repair station completes Heat Sink repairs. Acquired Heat Sink. K-01 Serf collects debris. Acquired 23 matter. K-01 Serf collects debris. Com. Wheel destroyed. Y-45 Defender destroyed. K-01 Serf collects debris. Acquired 50 matter. K-01 Serf collects debris. K-01 Serf cleans the Fusion Modulator. W-16 Scout sends out distress signal. S-10 Pest destroyed. K-01 Serf collects debris. Ion Engine destroyed. Map ----- +----------------------------------------------------+ | ?????????????????????????????????????????????? | | ?????????????????????????????????????????????? | | ?????????????????????????????????????????????? | | ?????????????????????????????????????????????? | | ?????????????????????????????????????????????? | | ?????????????????????????????????????????????? | | ?????????????????????????????????????????????? | | ?????????????????????????????????????????????? | | ?????????????????????????????????????????????? | | ?????????????????????????????????????????????? | | ?????????????????????????? ?????????????????? | | ????????????????????? ???? ???????????????? | | ?????????????????? """" ????????????? | | ???????????????? """" !!!??????????? | | ???????????????# !! #?????????? | | ???????????????? !! #?????????? | | ????????????????? !!! #?????????? | | ?????????????????? !!] #?????????? | | ??????????????????? !!] #?????????? | | ???????????????????? s k #?????????? | | ????????????????????? ss #?????????? | | ?????????????????????#% #?????????? | | ?????????????????????# #?????????? | | ?????????????????????# #?????????? | | ?????????????????????# #?????????? | | ?????????????????????+ @ #?????????? | | ?????????????????????# #?????????? | | ?????????????????????# #?????????? | | ?????????????????????### ####### #?????????? | | ???????????????????????# #?????# #?????????? | | ??????????????????????##+####### #?????????? | | ??????????????????????# # +?????????? | | ??????????????????????#""" # #?????????? | | ??????????????????????#""" # ########??? | | ??????????????????????#""" # # #??? | | ??????????????????????# + # """ #??? | | ??????????????????????#""" # + """ #??? | | ??????????????????????#""" # # """ #??? | | ??????????????????????#""" # # """ #??? | | ??????????????????????# %[ ! # # #??? | | ??????????????????????# ######## ########??? | | ??????????????????????###??????# # #??? | | ???????????????????????????????# # """ #??? | | ???????????????????????????????# # "R" #??? | | ???????????????????????????????# # " " #??? | | ???????????????????????????????# # #??? | | ???????????????????????????????# + #??? | | ???????????????????????????????# ########??? | | ???????????????????????????????# !##?????? | | ???????????????????????????????# !#?????? | +----------------------------------------------------+ Best States ------------- Heat Dissipation 38 Energy Generation 10 Energy Capacity 250 Matter Stores 300 Matter Capacity 300 Sight Range 16 Terrain Scan Density 10 Evasion (%) 50 Targeting Accuracy 5 Item Schematics ----------------- None Robot Schematics ------------------ None Fabricated ------------ Nothing Alien Tech Used ----------------- None Achievements -------------- None Challenges ------------ None Game ------ Seed DispersionAblativeJammer Manual? 0 Play Time 00:12:54 Cumulative 19.8 hours Start 2024.04.24 @ 20:37:29 End 2024.04.24 @ 20:48:11 Sessions 1 Manual Loads 0 Difficulty Rogue Special Mode None Game No. 31 Rogue 29 Adventurer 2 Explorer 0 Win Type - Total 0 Types 0/0/0/0/0/0/0/0/0 Lore% 25 Gallery% 20 Achievement% 20 Wizard Run 0 Options --------- Layout 1 ASCII 0 Keyboard 0 Movement Mouse Keybinds 0 Fullscreen 1 Font 24/Smallcaps Map View 50x40 Zoom Use 0% Tactical HUD 0 Map Filters NONE Filters NONE Steam 1 RUN: 24a88885-7143-4edf-8230-ef45c703a0fe